Cogmind - Beta 14 @@@ ROGUE MODE // 2024.09.02 @ 19:27:45 Player: BadFPS Result: Destroyed by WZ-RUQ(R) with Subdweller Laser Performance ------------- Evolutions (0) 0 Regions Visited (3) 600 Robots Destroyed (26) 130 Value Destroyed (379) 379 Prototype IDs (3) 60 Alien Tech Used (0) 0 Bonus (-10) -10 TOTAL SCORE: 1159 Bonus ------- High Alert Combat Kills 2 Friendly Fire -12 Cogmind --------- Core Integrity 0/250 Matter 275/300 Energy 123/125 System Corruption 6% Temperature Cool (6) Movement Rolling (110) Location -10/Subcaves Parts ------- > --- POWER (1) -------- Light Ion Engine > --- PROPULSION (2) --- Subdweller Monowheel Subdweller Monowheel > --- UTILITY (2) ------ Medium Storage Unit Signal Interpreter > --- WEAPON (2) ------- Missile Launcher Scythe > --- INVENTORY (10) --- Hover Unit Hover Unit Hover Unit Experimental Sensor Array Subdweller Laser Battle Rifle Subdweller Machine Gun Peak State ------------ > --- POWER ------------ Deuterium Engine > --- PROPULSION ------- Carbon-fiber Leg Carbon-fiber Leg > --- UTILITY ---------- Medium Storage Unit Signal Interpreter > --- WEAPON ----------- Particle Gun Scythe > --- INVENTORY -------- Light Ion Engine Hover Unit Hover Unit Hover Unit Heat Sink Structural Scanner Experimental Sensor Array Light Armor Plating Missile Launcher Mining Laser [Rating: 18] Favorites ----------- Power Light Ion Engine Engine Light Ion Engine Propulsion Aluminum Leg Treads Light Treads Leg Aluminum Leg Wheel Subdweller Monowheel Utility Medium Storage Unit Device Sensor Array Storage Medium Storage Unit Processor Signal Interpreter Weapon Small Laser Energy Gun Small Laser Launcher Missile Launcher Special Weapon Mining Laser Slashing Weapon Scythe Build | -11 -10 -10 -10 ------- Run | Yrd Mat Min Sub Slots Evolved . | . . . . Power . | . . . . Propulsion . | . . . . Utility . | . . . . Weapon . | . . . . Parts Attached 38 | 7 17 9 5 Power 8 | 1 5 1 1 Engine 8 | 1 5 1 1 Core . | . . . . Reactor . | . . . . Propulsion 10 | 2 4 2 2 Treads 2 | . 2 . . Leg 6 | 2 2 2 . Wheel 2 | . . . 2 Hover . | . . . . Flight . | . . . . Utility 9 | 2 5 2 . Device 4 | 1 2 1 . Storage 3 | 1 1 1 . Processor 2 | . 2 . . Hackware . | . . . . Protection . | . . . . Artifact . | . . . . Weapon 11 | 2 3 4 2 Energy Gun 6 | 2 2 1 1 Energy Cannon . | . . . . Ballistic Gun . | . . . . Ballistic Cannon . | . . . . Launcher 1 | . . . 1 Special Weapon 3 | . 1 2 . Impact Weapon . | . . . . Slashing Weapon 1 | . . 1 . Piercing Weapon . | . . . . Special Melee Weapon . | . . . . Unidentified Prototypes 1 | . . 1 . Corrupted Parts 1 | . . . 1 System Corruption 6 | . . . 6 Parts Lost 2 | . 1 . 1 Power 1 | . 1 . . Propulsion . | . . . . Utility . | . . . . Weapon 1 | . . . 1 Highest Loss Streak 1 | . 1 . 1 To Critical Strikes . | . . . . Average Slot Usage (%) 99 | . 99 99 98 Engine 13 | . 13 14 14 Treads 2 | . 4 . . Leg 24 | . 23 27 21 Wheel 1 | . . . 6 Device 4 | . 8 . . Storage 13 | . 14 13 14 Processor 9 | . 6 14 14 Energy Gun 14 | . 19 14 . Special Weapon 8 | . 8 6 12 Slashing Weapon 4 | . . 7 14 Peak Build Rating 18 | 7 8 18 17 Average Rating 10 | 5 7 12 16 On Entrance 8 | . 7 8 17 Naked Turns . | . . . . Heaviest Build 24 | 11 17 24 22 Greatest Support 40 | 20 40 30 40 Greatest Overweight (x) 3 | 3 . 1 . Average Overweight (x) . | . . . . Largest Inventory Capacity 10 | 8 10 10 10 Average Capacity 9 | 7 8 9 10 Most Carried 10 | 4 10 10 10 Average Carried 8 | 2 7 9 9 Final Capacity 10 | 8 10 10 10 Final Carried 10 | 4 10 10 7 Class Distribution -------------------- 100% | Mutant Dominant Class ---------------- Mutant | -10/Materials Mutant | -10/Mines Mutant | -10/Subcaves Resources | -11 -10 -10 -10 ----------- Run | Yrd Mat Min Sub Matter Collected 545 | 270 105 20 150 Remotely . | . . . . Salvage Created 783 | 141 534 13 95 Parts 53 | 9 37 3 4 Haulers Intercepted 1 | . 1 . . Recyclers Shooed 8 | 1 5 2 . Parts Field Recycled . | . . . . Retrieved Matter . | . . . . Parts Self-Destructed 7 | . . . 7 Prevented . | . . . . Kills | -11 -10 -10 -10 ------- Run | Yrd Mat Min Sub Combat Hostiles Destroyed 16 | . 12 1 3 Melee 4 | . . 1 3 Guns 12 | . 12 . . Classes Destroyed 8 | 2 5 . 1 Worker 1 | . 1 . . Tunneler 3 | 3 . . . Hauler 1 | . 1 . . Recycler 3 | 1 2 . . Watcher 2 | . 2 . . Swarmer 11 | . 9 1 1 Grunt 3 | . 3 . . Subdweller 2 | . . . 2 Best Kill Streak 7 | 4 7 1 1 Combat Bots Only 5 | . 5 1 1 Max Kills in Single Turn 2 | 1 2 1 1 Gunslinging 1 | . 1 . . Exploded . | . . . . Melee 1 | . . 1 1 Uniques/NPCs Destroyed . | . . . . Combat | -11 -10 -10 -10 -------- Run | Yrd Mat Min Sub Hostile Shots Fired 102 | . 78 1 23 Missed 31 | . 25 . 6 Damage Taken 915 | . 505 108 302 Core 254 | . 105 44 105 Absorbed by Shields . | . . . . Regen/Repaired (Parts) 67 | . 67 . . Core Remaining (%) 100 | 100 . . . Volleys Fired 70 | 8 57 4 1 Largest 2 | 2 2 2 1 Hottest 100 | 80 100 100 100 Shots Fired 130 | 16 106 7 1 Gun 120 | 16 98 6 . Cannon . | . . . . Launcher . | . . . . Special 10 | . 8 1 1 Kinetic . | . . . . Thermal 130 | 16 106 7 1 Explosive . | . . . . Electromagnetic . | . . . . Robot Hit Streak 15 | 13 15 5 . Robot Miss Streak 4 | 1 4 2 . Penetration Max . | . . . . Secondary Targets 2 | . 2 . . Max Gunslinging Chain 1 | . 1 . . Shots Hit Robots 87 | 14 57 5 11 Core Hits 38 | 5 28 2 3 Critical Kills . | . . . . Critical Parts Destroyed . | . . . . Critical Strikes . | . . . . Melee Attacks 14 | . . 1 13 Impact . | . . . . Slashing 14 | . . 1 13 Piercing . | . . . . Sneak Attacks . | . . . . Combat Hostiles . | . . . . Follow-up Attacks . | . . . . Damage Inflicted 1202 | 160 650 86 306 Guns 866 | 160 650 56 . Cannons . | . . . . Explosions . | . . . . Melee 336 | . . 30 306 Ramming . | . . . . Kinetic . | . . . . Thermal 866 | 160 650 56 . Explosive . | . . . . Electromagnetic . | . . . . Impact . | . . . . Slashing 336 | . . 30 306 Piercing . | . . . . Highest Corruption 6 | . . . 6 Average Corruption 6 | . . . 6 Corruption Purged . | . . . . Corruption Blocked . | . . . . Effects 1 | . . . 1 Message Errors 1 | . . . 1 Overload Shots . | . . . . Overflow Damage . | . . . . Projectiles . | . . . . Explosions . | . . . . Melee . | . . . . Knockbacks . | . . . . Impact . | . . . . Kinetic . | . . . . Secondary . | . . . . Self-Inflicted Damage . | . . . . Shots . | . . . . Rammed . | . . . . Targets Rammed . | . . . . Kicked . | . . . . Crushed . | . . . . Highest Temperature 162 | 90 162 36 . Average Temperature 37 | 37 38 18 . Received Heat Transfer 183 | . 123 . 60 Siege Activations . | . . . . Robots Corrupted . | . . . . Combat Hostiles . | . . . . Parts Fried . | . . . . Impact Corruptions . | . . . . Robots Melted . | . . . . Combat Hostiles . | . . . . Parts Melted 4 | 1 3 . . Heat Transferred 1950 | 350 1475 125 . Parts Sabotaged . | . . . . Parts Stolen . | . . . . Parts Stripped . | . . . . Power Chain Reactions . | . . . . Alert | -11 -10 -10 -10 ------- Run | Yrd Mat Min Sub Peak Influence 410 | 20 410 50 . Initial 13 | . 13 . . Average 93 | 6 128 19 . Maximum Alert Level 2 | . 2 . . Low Security (%) 76 | 100 64 100 . Level 1 21 | . 31 . . Level 2 2 | . 3 . . Level 3 . | . . . . Level 4 . | . . . . Level 5 . | . . . . High Security . | . . . . Max Security . | . . . . Squads Dispatched 2 | . 2 . . Investigation 2 | . 2 . . Extermination . | . . . . Reinforcement . | . . . . Assault . | . . . . Garrison . | . . . . Intercept . | . . . . Searches Triggered . | . . . . Construction Impeded . | . . . . Haulers Reinforced . | . . . . Active Scanning Responses . | . . . . Cargo Convoy Interrupts . | . . . . Stealth | -11 -10 -10 -10 --------- Run | Yrd Mat Min Sub Distress Signals 2 | . 2 . . Communications Jammed . | . . . . Distress Signals . | . . . . Times Spotted 36 | . 23 3 10 Peak Tracking Total 7 | . 7 3 3 Tactical Retreats 8 | . 3 1 4 Traps | -11 -10 -10 -10 ------- Run | Yrd Mat Min Sub Traps Triggered 1 | . 1 . . Indirectly . | . . . . Trap Hack Attempts . | . . . . Triggered . | . . . . Disarmed . | . . . . Reprogrammed . | . . . . Reused . | . . . . Traps Extracted . | . . . . Installed . | . . . . Triggered . | . . . . Machines | -11 -10 -10 -10 ---------- Run | Yrd Mat Min Sub Machines Disabled . | . . . . Max in Single Turn . | . . . . Machines Repaired . | . . . . Machines Dismantled . | . . . . Machines Sabotaged . | . . . . Overloaded Fab Kills . | . . . . Hacking | -11 -10 -10 -10 --------- Run | Yrd Mat Min Sub Machines Accessed 14 | . 11 1 2 Terminals 8 | . 8 . . Fabricators . | . . . . Repair Stations 1 | . 1 . . Recycling Units 2 | . 2 . . Scanalyzers . | . . . . Garrison Access . | . . . . Total Hacks 22 | . 18 1 3 Successful 15 | . 11 1 3 Failed 7 | . 7 . . Catastrophic . | . . . . Database Lockouts . | . . . . Manual 10 | . 10 . . Terminals 12 | . 12 . . Fabricators . | . . . . Repair Stations 3 | . 3 . . Recycling Units 3 | . 3 . . Scanalyzers . | . . . . Garrison Access . | . . . . Terminal Hacks 5 | . 1 1 3 Record 1 | . . . 1 Prototype ID Bank 1 | . 1 . . Open Door 2 | . . 1 1 Release Object 1 | . . . 1 Fabricator Hacks . | . . . . Repair Station Hacks 3 | . 3 . . Scan Component 2 | . 2 . . Repair 1 | . 1 . . Recycling Unit Hacks 3 | . 3 . . Report Inventory 2 | . 2 . . Retrieve Components 1 | . 1 . . Scanalyzer . | . . . . Garrison Access Hacks . | . . . . Unauthorized Hacks 4 | . 4 . . Terminals 4 | . 4 . . Botnet 4 | . 4 . . Fabricators . | . . . . Repair Stations . | . . . . Recycling Units . | . . . . Scanalyzers . | . . . . Garrison Access . | . . . . Data Cores Recovered . | . . . . Used . | . . . . Hacking Detections 5 | . 5 . . Full Trace Events 1 | . 1 . . Feedback Events . | . . . . Feedback Blocked . | . . . . Robot Schematics Acquired . | . . . . Robots Built . | . . . . Authchips . | . . . . Time . | . . . . Total Robot Build Rating . | . . . . Part Schematics Acquired . | . . . . Parts Built . | . . . . Authchips . | . . . . Time . | . . . . Total Part Build Rating . | . . . . Parts Repaired 1 | . 1 . . Time 26 | . 26 . . Parts Recycled . | . . . . Recycled Matter . | . . . . Retrieved Matter . | . . . . Retrieved Components 10 | . 10 . . Parts Scanalyzed . | . . . . Part Schematics Acquired . | . . . . Parts Damaged . | . . . . Bothacking | -11 -10 -10 -10 ------------ Run | Yrd Mat Min Sub Used RIF Installer . | . . . . Robots Hacked . | . . . . Non-combat . | . . . . Combat . | . . . . Robot Hacks Applied . | . . . . Relay Couplers Released . | . . . . Fabnet Peak Effective % . | . . . . Robots Rewired . | . . . . Allies Hacked . | . . . . Hacks Repelled . | . . . . Allies | -11 -10 -10 -10 -------- Run | Yrd Mat Min Sub Total Allies 3 | . . 3 . Largest Group 3 | . . 3 . Highest-Rated Group 40 | . . 40 . Highest-Rated Ally 16 | . . 16 . Total Orders . | . . . . Ally Attacks . | . . . . Total Damage . | . . . . Kills . | . . . . Allies Corrupted . | . . . . Allies Melted . | . . . . Intel | -11 -10 -10 -10 ------- Run | Yrd Mat Min Sub Robot Analysis Total . | . . . . Derelict Logs Recovered 3 | . . 2 1 Drone Launches . | . . . . Drone Recoveries . | . . . . Exploration | -11 -10 -10 -10 ------------- Run | Yrd Mat Min Sub Turns Passed 3280 | 99 1759 718 704 Spaces Moved 2079 | 49 1031 483 516 Core 23 | 23 . . . Treads 82 | . 82 . . Legs 1873 | 26 949 483 415 Wheels 101 | . . . 101 Hover . | . . . . Flight . | . . . . Fastest Speed 50 | 50 120 120 110 Average Speed 120 | 111 123 120 118 Slowest Speed 200 | 200 160 190 120 Overloaded Moves . | . . . . Propulsion Burnouts . | . . . . Robots Hopped . | . . . . Cave-ins Triggered . | . . . . Exploration Rate (%) 52 | 4 99 69 38 Regions Visited 3 Branch Regions 2 Pre-discovered Areas . | . . . . Known Exits Taken 2 | . 1 1 . Unknown Exits Taken 1 | 1 . . . Scrap Searched 2 | . . . 2 Spaces Dug 8 | . 8 . . Terrain Destroyed 8 | . 8 . . Melee . | . . . . Projectile 8 | . 8 . . AOE . | . . . . Terrain Rammed . | . . . . Walls Destroyed . | . . . . Machines Disabled . | . . . . Actions | -11 -10 -10 -10 --------- Run | Yrd Mat Min Sub Total 2680 | 74 1398 612 596 Wait 401 | 7 267 96 31 Move 2076 | 48 1030 482 516 Hop . | . . . . Pick Up 39 | 4 14 8 13 Fast Attach 17 | 7 2 7 1 Attach 7 | . 2 2 3 Detach 2 | . . 2 . Swap 14 | . 13 . 1 Drop 39 | . 13 10 16 Fire 70 | 8 57 4 1 Melee 14 | . . 1 13 Ram . | . . . . Kick . | . . . . Crush . | . . . . Escape Stasis . | . . . . Rewire . | . . . . Trap . | . . . . Miscellaneous 1 | . . . 1 Route ------- -11/Scrapyard -10/Materials (discovered 5 exits: *Mat x3 / *Min x2) -10/Mines (discovered 4 exits: *Mat x2 / *Exi / *Sub) -10/Subcaves (discovered 1 exit: [*Mat]) History --------- Turn | Location | Event 5 | -11/Scrapyard | Discovered new exit (range 15) 100 | -11/Scrapyard | Entered Materials 170 | -10/Materials | Discovered new exit (range 16) 310 | -10/Materials | Build established: Mutant 549 | -10/Materials | Discovered new exit (range 14) 639 | -10/Materials | Discovered new exit (range 7) 943 | -10/Materials | Discovered new exit (range 16) 1097 | -10/Materials | Discovered new exit (range 6) 1107 | -10/Materials | Identified exit to Materials 1114 | -10/Materials | Identified exit to Mines 1534 | -10/Materials | Repaired Sml. Laser 1859 | -10/Materials | Entered Mines 1907 | -10/Mines | Discovered exit to Materials (range 6) 1960 | -10/Mines | Assisted by bots powering up and referring to "LRC-V3" 1982 | -10/Mines | Found a damaged Exp. Sensor Array with a note attached 1985 | -10/Mines | Found Prototype Device 1985 | -10/Mines | Identified Exp. Sensor Array 2037 | -10/Mines | Learned Materials non-interactive machine intel 2084 | -10/Mines | Identified exit to Subcaves 2088 | -10/Mines | Found a hidden stash of uninstalled traps 2104 | -10/Mines | Deemed a non-threat by the Exiles lab entrance 2104 | -10/Mines | Discovered new exit (range 5) 2108 | -10/Mines | Identified exit to Exiles 2152 | -10/Mines | Discovered exit to Materials (range 9) 2161 | -10/Mines | Met a Derelict who couldn't figure out how to use a Trap Extractor 2201 | -10/Mines | Core integrity fell below 50% 2577 | -10/Mines | Entered Subcaves 2883 | -10/Subcaves | Released subatomizers from SUBCON Basin 3052 | -10/Subcaves | Learned Materials security intel 3066 | -10/Subcaves | Disturbed a concealed Subdweller 3154 | -10/Subcaves | Discovered new exit (range 8) 3210 | -10/Subcaves | Ambushed by Subdwellers from Twisted Machinery 3211 | -10/Subcaves | Core integrity fell below 20% 3281 | -10/Subcaves | Destroyed by WZ-RUQ(R) with Subdweller Laser Last Messages --------------- 03121_ Acquired Sub. Beam Cannon. 03123_ Dropped Heat Sink. 03123_ Acquired Battle Rifle. 03126_ Subatomizers dissect the Carbon-fiber Leg. 03154_ EXIT=FOUND 03179_ E0-BJO(R) destroyed. 03183_ Dropped Sub. Beam Cannon. 03184_ Acquired Sub. Machine Gun. 03206_ Dropped Corrupted Pulse Rifle. 03206_ Dropped Deuterium Engine. 03208_ Subatomizers dissect the Sub. Optics. 03210_ Mining Laser destroyed. 03221_ 8Q-5UJ(R) destroyed. 03253_ S-10 Pest destroyed. 03264_ Lgt. Assault Rifle fries itself beyond repair. 03272_ Integrated Corrupted Missile Launcher (+6). 03281_ CBMWNNOOWBQABD/H |IBRU&MTK::P|JNXH Map ----- +----------------------------------------------------+ | ?????????????????????????????????????????????????? | | ?????????????????????????????????????????????????? | | ?????????????????????????????????????????????????? | | ????????????????????#""??????????????????????????? | | ???????????????????# ""??????????????????????????? | | ???????????????????# ###"""#???????????????????? | | ?????????????####### # #"" #???????????????????? | | ?????????????""" "# ?%[ ???????????????????? | | ?????????????? # & ?&= ????????????????????? | | ??????????????? " &%& ? ?????????????????????? | | ??????????????? & ## #??####???????????????? | | ??????????????? [ # %### ##??????????????? | | ???????????????? % #; ###????????????? | | ????????????????? " ! % % ?????????????? | | ?????????????????? " *% % % ????????????? | | ???????????????????# !% ? ????????? | | ???????????????????# & #??? ?????????? | | ???????????????????# ]% ## ????????? | | ???????????????????# ????????? | | ???????????????????## * ;## #????????? | | ????????????????????# "" [%;#???????????????????? | | ????????????????????###"; ;;#???????????????????? | | ??????????????????????### ##???????????????????? | | ???????????????????????# #????????????????????? | | ???????????????????????# #????????????????????? | | ???????????????????????##@ #????????????????????? | | ####??????????????????## ##????????????????????? | | #%##????????????????## #?????????????????????? | | ! =&#???????????????## #?????????????????????? | | #="##???????????????# #?????????????????????? | | ###?????#####?????# #?????????????????????? | | # # #???## #?##### ## #?????????????????????? | | " % #???# #??# # ## #?????????????????????? | | !##### #??# R #?????????????????????? | | ! ##??# ##& ##?????????????????????? | | ###???# #%& #??????????????????????? | | ##????## ] ##??????????????????????? | | #######?# ### ##???????????????????????? | | # ## # #### ##?####????????????????????????? | | ### ##?????????????????????????????? | | # ## #?????????????????????????????? | | # ## # #### # # #???????????????????????????? | | #### ######??## ### ?????????????????????????? | | ???## ?????? < ??????????????????????? | | ???? ??? # ###### #????????????????????? | | ????# ? #???????? ##????????????????????? | | ??##### # ?# ?????????? "??????????????????????? | | ## ##?####??#?????????????#?????????????????????? | | #???????????????????????????????????????????? | | #????#####??????????????????????????????????? | +----------------------------------------------------+ Best States ------------- Heat Dissipation 25 Energy Generation 14 Energy Capacity 275 Matter Stores 300 Matter Capacity 300 Sight Range 16 Robot Scan Range 14 Terrain Scan Density 10 Evasion (%) 55 Recoil Reduction 2 Item Schematics ----------------- None Robot Schematics ------------------ None Fabricated ------------ Nothing Alien Tech Used ----------------- None Achievements -------------- None Challenges ------------ None Game ------ Seed AnalysisMassDisintegrator Manual? 0 Play Time 00:43:05 Cumulative 23.8 hours Start 2024.09.02 @ 18:37:29 End 2024.09.02 @ 19:27:45 Sessions 1 Manual Loads 0 Difficulty Rogue Special Mode None Game No. 12 Rogue 12 Adventurer 0 Explorer 0 Win Type - Total 0 Types 0/0/0/0/0/0/0/0/0 Lore% 23 Gallery% 27 Achievement% 24 Wizard Run 0 Options --------- Layout 2 ASCII 0 Keyboard 0 Movement Mouse Keybinds 0 Fullscreen 1 Font 24/Smallcaps Map View 50x44 Zoom Use 0% Tactical HUD 1 Map Filters NONE Filters NONE Steam 1 RUN: 08c36662-30a1-4a3c-b7fa-0aa5958aca42